bitfinex-derivatives/quotes_BTCF0:USTF0_20250806
["timestamp","ask_amount","ask_price","bid_price","bid_amount"]
[1754516517605,1.07121563,114950.0,114940.0,1.53603303]
[1754516520899,1.07121563,114950.0,114940.0,1.1066019]
[1754516521104,1.07121563,114950.0,114940.0,1.53603303]
[1754516521907,1.07121563,114950.0,114940.0,1.1066019]
[1754516524008,1.07121563,114950.0,114940.0,0.9031278]
[1754516525709,1.07121563,114950.0,114940.0,1.33255893]
[1754516526104,0.71041563,114950.0,114940.0,1.33255893]
[1754516526304,0.6417845,114950.0,114940.0,1.33255893]
[1754516526604,1.07121563,114950.0,114940.0,1.33255893]
[1754516528014,0.42943113,114950.0,114940.0,1.73685023]
[1754516528213,0.2221373,114950.0,114940.0,1.73685023]
[1754516528509,0.65156843,114950.0,114940.0,1.73685023]
[1754516533612,0.65156843,114950.0,114940.0,1.94032433]
[1754516534512,0.65156843,114950.0,114940.0,1.94132433]
[1754516535012,0.65156843,114950.0,114940.0,1.94032433]
[1754516535314,0.65256843,114950.0,114940.0,1.94332433]
[1754516537813,0.2231373,114950.0,114940.0,1.94332433]
[1754516542310,0.2184573,114950.0,114940.0,1.94332433]
[1754516543317,0.42943113,114960.0,114940.0,2.03030593]
[1754516543518,0.42943113,114960.0,114950.0,1.21448039]
[1754516543819,0.77731823,114960.0,114950.0,1.21448039]
[1754516544417,0.3478871,114960.0,114950.0,1.21448039]
[1754516544612,0.77731823,114960.0,114950.0,1.21448039]
[1754516544819,0.77831823,114960.0,114950.0,1.21548039]
[1754516545714,0.3488871,114960.0,114950.0,1.21548039]
[1754516551424,0.77831823,114960.0,114950.0,1.21548039]
[1754516552728,0.3488871,114960.0,114950.0,1.21548039]
[1754516556628,0.0434876,114960.0,114950.0,0.82953696]
[1754516556832,0.217425,114960.0,114950.0,1.25896809]
[1754516560134,0.217425,114960.0,114950.0,0.85469696]
[1754516560537,0.217425,114960.0,114950.0,1.12751143]
[1754516566440,0.217425,114960.0,114950.0,0.91007113]
[1754516566641,0.217425,114960.0,114950.0,1.51359113]
[1754516567139,0.217425,114960.0,114950.0,1.08416]
[1754516567339,0.217425,114960.0,114950.0,1.51359113]
[1754516567740,0.217425,114960.0,114950.0,0.91007113]
[1754516568041,0.217425,114960.0,114950.0,1.68754383]
[1754516569335,0.217425,114960.0,114950.0,1.51359113]
[1754516570540,0.217425,114960.0,114950.0,0.91007113]
[1754516570742,0.217425,114960.0,114950.0,1.51355113]
[1754516570928,0.217425,114960.0,114950.0,1.84412049]
[1754516571340,0.217425,114960.0,114950.0,1.67016779]
[1754516572536,0.64685613,114960.0,114950.0,0.54161666]
[1754516573344,0.64685613,114960.0,114950.0,0.385]
[1754516573642,0.64685613,114960.0,114950.0,0.47919]
[1754516575144,0.64785613,114960.0,114950.0,0.47919]
[1754516575846,0.64885613,114960.0,114950.0,0.48019]
[1754516579444,0.64885613,114960.0,114950.0,0.90962113]
[1754516580651,2.15571126,114960.0,114950.0,0.3026616]
[1754516580848,2.15571126,114960.0,114950.0,1e-07]
[1754516581350,2.51651126,114960.0,114950.0,1e-07]
[1754516581545,2.51651126,114960.0,114930.0,1.59637779]
[1754516581546,0.1895179,114940.0,114930.0,1.43972113]
[1754516581748,0.61894903,114940.0,114930.0,1.53972113]
[1754516581950,0.64180903,114940.0,114930.0,1.11029]
[1754516582147,0.64180903,114940.0,114930.0,0.4608]
[1754516582352,0.2123779,114940.0,114930.0,0.4089]
[1754516582553,0.2123779,114940.0,114930.0,0.3608]
[1754516582554,1.71921703,114940.0,114930.0,0.3608]
[1754516583151,1.41921703,114940.0,114930.0,0.3608]
[1754516583556,1.41921703,114940.0,114930.0,0.38423]
[1754516583852,1.42021703,114940.0,114930.0,0.42729]
[1754516584053,1.42121703,114940.0,114930.0,0.46303]
[1754516584353,1.42121703,114940.0,114930.0,0.47942]
[1754516587658,1.24720903,114940.0,114930.0,0.47942]
[1754516592365,1.60800903,114940.0,114930.0,0.11862]
[1754516594368,1.24720903,114940.0,114930.0,0.11862]
[1754516600670,0.1759679,114940.0,114930.0,1.51226526]
[1754516600871,0.1759679,114940.0,114930.0,2.11562526]
[1754516601471,0.1759679,114940.0,114930.0,1.68619413]
[1754516602775,0.1759679,114940.0,114930.0,2.11562526]
[1754516605780,0.1759679,114940.0,114930.0,2.27224192]
[1754516605981,0.3479158,114950.0,114940.0,0.2957579]
[1754516606278,0.3479158,114950.0,114940.0,0.6565579]
[1754516606484,0.3479158,114950.0,114940.0,1.08598903]
[1754516607180,0.3044243,114950.0,114940.0,1.08598903]
[1754516607683,0.3064243,114950.0,114940.0,1.08598903]
[1754516608073,0.3084243,114950.0,114940.0,1.08698903]
[1754516608273,0.3084243,114950.0,114940.0,0.6575579]
[1754516608580,0.3084243,114950.0,114940.0,1.08698903]
[1754516609585,0.3064243,114950.0,114940.0,1.08698903]
[1754516609880,0.3054243,114950.0,114940.0,1.24560569]
[1754516610583,0.3054243,114950.0,114940.0,1.08898903]
[1754516613081,0.82517543,114950.0,114940.0,1.51822113]
[1754516614584,0.82558543,114950.0,114940.0,1.51822113]
[1754516614785,0.3961543,114950.0,114940.0,1.08879]
[1754516615380,0.3961543,114950.0,114940.0,0.48559]
[1754516615589,0.3961543,114950.0,114940.0,1.08875]
[1754516616587,0.3961543,114950.0,114940.0,0.48559]
[1754516616786,0.3961543,114950.0,114940.0,1.08875]
[1754516622185,0.3961543,114950.0,114940.0,0.48559]
[1754516622390,0.3961543,114950.0,114940.0,1.08871]
[1754516625894,0.3961543,114950.0,114940.0,1.08867]
[1754516626595,0.3961543,114950.0,114940.0,0.48559]
[1754516626892,0.3727243,114950.0,114940.0,1.08867]
[1754516627393,0.3727243,114950.0,114940.0,0.48559]
[1754516627688,0.3727243,114950.0,114940.0,1.08867]
[1754516627894,0.3961543,114950.0,114940.0,1.08867]
[1754516628996,0.3961543,114950.0,114940.0,0.48559]
[1754516629198,0.3961543,114950.0,114940.0,1.08867]
[1754516630393,0.3727243,114950.0,114940.0,1.08867]
[1754516630599,0.3727243,114950.0,114940.0,0.6595578]
[1754516630797,0.3724743,114950.0,114940.0,1.2626378]
[1754516631700,0.3725443,114950.0,114940.0,1.2626378]
[1754516633591,0.3724743,114950.0,114940.0,1.2626378]
[1754516633798,0.3054243,114950.0,114940.0,1.2626378]
[1754516634298,0.3333243,114950.0,114940.0,1.2626378]
[1754516634485,0.3492343,114950.0,114940.0,1.08867]
[1754516634796,0.3714143,114950.0,114940.0,1.08867]
[1754516635697,0.3714143,114950.0,114940.0,1.08863]
[1754516636199,0.3714343,114950.0,114940.0,0.48559]
[1754516636398,0.3949143,114950.0,114940.0,1.04195]
[1754516636697,0.3949143,114950.0,114940.0,1.4712577]
[1754516636698,0.824222,114950.0,114940.0,1.4712577]
[1754516637194,0.800792,114950.0,114940.0,1.4712577]
[1754516637593,0.800792,114950.0,114940.0,1.08923]
[1754516637801,0.824222,114950.0,114940.0,1.08923]
[1754516640300,0.824222,114950.0,114940.0,0.0654572]
[1754516640496,1.185022,114950.0,114940.0,0.0101401]
[1754516640698,1.185022,114950.0,114940.0,0.0210801]
[1754516640993,1.788062,114950.0,114940.0,1e-07]
[1754516641396,0.2948536,114930.0,114920.0,0.65782113]
[1754516641593,0.7241613,114930.0,114920.0,0.65782113]
[1754516641794,0.7241613,114930.0,114920.0,0.48408883]
[1754516642093,0.7241613,114930.0,114920.0,0.02800113]
[1754516642295,0.7241613,114930.0,114920.0,0.01014]
[1754516642595,0.294884,114910.0,114900.0,0.5642741]
[1754516642793,0.2948992,114900.0,114890.0,0.58882666]
[1754516642993,0.7242069,114900.0,114890.0,1.29964666]
[1754516643198,0.7242069,114900.0,114890.0,1.5723377]
[1754516643392,0.7242069,114900.0,114890.0,1.04303]
[1754516643598,0.75282642,114900.0,114890.0,0.43999]
[1754516644298,0.75282642,114900.0,114890.0,0.08119]
[1754516644495,0.75282642,114900.0,114890.0,0.44199]
[1754516644800,0.32351872,114900.0,114890.0,1.04503]
[1754516645202,0.32551872,114900.0,114890.0,0.44199]
[1754516645402,0.32551872,114900.0,114890.0,1.04507]
[1754516646100,0.32551872,114900.0,114890.0,0.44199]
[1754516646599,0.32551872,114900.0,114890.0,0.2581798]
[1754516646600,0.70747028,114900.0,114890.0,0.2581798]
[1754516646900,0.70747028,114900.0,114860.0,0.15661666]
[1754516646901,0.2949446,114870.0,114860.0,0.63941666]
[1754516647099,0.8983846,114870.0,114860.0,0.63941666]
[1754516647405,0.2228049,114850.0,114840.0,1.2428741]
[1754516647602,0.1741049,114850.0,114840.0,1.0394]
[1754516647902,0.1741049,114850.0,114840.0,1.59547166]
[1754516648697,0.1741013,114860.0,114850.0,0.2961049]
[1754516648897,0.1741013,114860.0,114850.0,1.03885646]
[1754516649508,0.1741013,114860.0,114850.0,0.6569049]
[1754516650303,0.1741013,114860.0,114850.0,0.6579049]
[1754516651108,0.1741013,114860.0,114850.0,1.03985646]
[1754516652106,0.1741013,114860.0,114850.0,0.6579049]
[1754516652306,0.1741013,114860.0,114850.0,1.03985646]
[1754516652703,0.304649,114870.0,114860.0,0.2938198]
[1754516652895,0.174088,114870.0,114860.0,1.64237136]
[1754516653102,0.2611046,114880.0,114870.0,0.2225046]
[1754516653303,0.2175875,114880.0,114870.0,0.96525616]
[1754516653507,0.2610826,114890.0,114880.0,0.1740595]
[1754516653708,0.2610826,114890.0,114880.0,1.2608695]
[1754516654310,0.0870165,114900.0,114880.0,1.94282106]
[1754516654513,0.2610582,114900.0,114890.0,1.03652586]
[1754516654708,0.2175492,114900.0,114890.0,1.03652586]
[1754516655508,0.2175492,114900.0,114890.0,0.6545743]
[1754516655813,0.2175492,114900.0,114890.0,1.03652586]
[1754516656508,0.2175492,114900.0,114890.0,1.03752586]
[1754516656902,0.2195492,114900.0,114890.0,1.03852586]
[1754516657106,0.1760417,114900.0,114890.0,1.03852586]
[1754516657606,0.2610352,114910.0,114900.0,0.2937592]
[1754516657814,0.2175296,114910.0,114900.0,1.2613592]
[1754516658204,0.2175296,114910.0,114900.0,1.64331076]
[1754516658416,0.1740259,114910.0,114900.0,1.64331076]
[1754516658811,0.261013,114920.0,114910.0,0.174014]
[1754516659010,0.2175114,114920.0,114910.0,1.03649556]
[1754516659206,0.2609895,114930.0,114920.0,0.2690989]
[1754516659409,0.2174917,114930.0,114920.0,1.2614489]
[1754516659609,0.384218,114940.0,114930.0,0.2937137]
[1754516659809,0.2654534,114940.0,114930.0,1.03646526]
[1754516660512,0.3044412,114950.0,114940.0,0.2936986]
[1754516660711,0.2609492,114950.0,114940.0,1.64353016]
[1754516660915,0.2174572,114950.0,114940.0,1.64353016]
[1754516661616,0.2184572,114950.0,114940.0,1.64553016]
[1754516663116,0.2184572,114950.0,114940.0,1.64653016]
[1754516663816,0.2184572,114950.0,114940.0,1.715248]
[1754516665221,0.2184572,114950.0,114940.0,1.33329644]
[1754516665414,0.2184572,114950.0,114940.0,1.715248]
[1754516668812,0.2184572,114950.0,114940.0,1.64653016]
[1754516677326,0.2634972,114950.0,114940.0,1.64653016]
[1754516677926,0.2634972,114950.0,114940.0,1.2645786]
[1754516678534,0.2184572,114950.0,114940.0,1.2645786]
[1754516678736,0.2184572,114950.0,114940.0,1.64653016]
[1754516681335,0.2288572,114950.0,114940.0,1.64653016]
[1754516682237,0.2184572,114950.0,114940.0,1.64653016]
[1754516689344,0.001,114950.0,114940.0,1.64653016]
[1754516689645,0.1749534,114950.0,114940.0,1.64653016]
[1754516690745,0.1749534,114950.0,114940.0,1.67098258]
[1754516695548,0.001,114950.0,114940.0,1.67098258]
[1754516695944,0.1749535,114950.0,114940.0,1.67098258]
[1754516697440,0.001,114950.0,114940.0,1.67098258]
[1754516697740,0.1749535,114950.0,114940.0,1.67098258]
[1754516698046,0.001,114950.0,114940.0,1.67098258]
[1754516702147,0.3044106,114960.0,114940.0,1.62548318]
[1754516702347,0.001,114950.0,114940.0,1.46199122]
[1754516702648,0.001,114950.0,114940.0,2.20474278]
[1754516703047,0.1749535,114950.0,114940.0,2.20374278]
[1754516703249,0.1749535,114950.0,114940.0,2.20474278]
[1754516703751,0.1739535,114950.0,114940.0,2.20474278]
[1754516704747,0.1739535,114950.0,114940.0,2.20374278]
[1754516704952,0.1739535,114950.0,114940.0,2.20474278]
[1754516705652,0.1749535,114950.0,114940.0,2.20574278]
[1754516705856,0.1749535,114950.0,114940.0,1.82379122]
[1754516706056,0.1739535,114950.0,114940.0,2.20474278]
[1754516706351,0.1749535,114950.0,114940.0,2.20774278]
[1754516708152,0.001,114950.0,114940.0,2.20774278]
[1754516708347,0.2608996,114970.0,114960.0,0.2009183]
[1754516708560,0.2712996,114970.0,114960.0,2.02319954]
[1754516708745,0.3593796,114970.0,114960.0,2.02319954]
[1754516709052,0.3833796,114970.0,114960.0,2.02319954]
[1754516709252,0.2608996,114970.0,114960.0,2.02319954]
[1754516709452,0.2722996,114970.0,114960.0,2.02319954]
[1754516709643,0.2722996,114970.0,114960.0,1.64224798]
[1754516709644,0.004,114970.0,114960.0,1.64224798]
[1754516709846,0.004,114970.0,114960.0,2.4061511]
[1754516710052,0.004,114970.0,114960.0,1.64224798]
[1754516711052,0.003,114970.0,114960.0,1.64424798]
[1754516711251,0.003,114970.0,114960.0,2.02619954]
[1754516711450,0.2173969,114980.0,114970.0,0.2232732]
[1754516711653,0.2173969,114980.0,114970.0,1.03965476]
[1754516712051,0.1739179,114980.0,114970.0,1.03965476]
[1754516712653,0.1739179,114980.0,114970.0,1.04165476]
[1754516712654,0.1759179,114980.0,114970.0,1.04165476]
[1754516713155,0.002,114980.0,114970.0,1.04165476]
[1754516715756,0.2979584,114980.0,114970.0,0.43576]
[1754516715963,0.67990996,114980.0,114970.0,1.00818]
[1754516716764,0.2979584,114980.0,114970.0,1.00818]
[1754516717264,0.2979584,114980.0,114970.0,1.03179]
[1754516717758,0.2979584,114980.0,114970.0,1.03079]
[1754516717966,0.2989584,114980.0,114970.0,1.00718]
[1754516718763,0.2989584,114980.0,114970.0,1.03079]
[1754516719157,0.68090996,114980.0,114970.0,1.03079]
[1754516719363,0.68090996,114980.0,114970.0,1.06399]
[1754516719661,0.68090996,114980.0,114970.0,0.45687]
[1754516719967,0.2969584,114980.0,114970.0,1.06319]
[1754516720162,0.2969584,114980.0,114970.0,1.08101]
[1754516720163,0.3009584,114980.0,114970.0,1.08101]
[1754516722268,0.3009584,114980.0,114970.0,1.2549335]
[1754516723164,0.3009584,114980.0,114970.0,0.6587035]
[1754516723369,0.3009584,114980.0,114970.0,1.2654235]
[1754516724571,0.3009584,114980.0,114970.0,1.1917935]
[1754516724769,0.3009584,114980.0,114970.0,1.2543335]
[1754516724970,0.3009584,114980.0,114970.0,1.08041]
[1754516725163,0.3009584,114980.0,114970.0,1.2543335]
[1754516728173,0.3009584,114980.0,114970.0,1.08041]
[1754516728375,0.3009584,114980.0,114970.0,1.2543335]
[1754516728673,0.3009584,114980.0,114970.0,1.08041]
[1754516729276,0.3009584,114980.0,114970.0,1.2543335]
[1754516729575,0.3009584,114980.0,114970.0,1.08041]
[1754516729974,0.3009584,114980.0,114970.0,1.2543343]
[1754516731174,0.3009584,114980.0,114970.0,1.08041]
[1754516731378,0.3009584,114980.0,114970.0,1.2543343]
[1754516732476,0.3009584,114980.0,114970.0,1.41095096]
[1754516732678,0.3009584,114980.0,114970.0,0.81532096]
[1754516732877,0.3009584,114980.0,114970.0,1.42060096]
[1754516735984,0.2269784,114980.0,114970.0,1.42060096]
[1754516736185,0.3009584,114980.0,114970.0,1.42060096]
[1754516741487,0.1789084,114980.0,114970.0,1.42060096]
[1754516742381,0.1898884,114980.0,114970.0,1.42060096]
[1754516742581,0.2058384,114980.0,114970.0,1.42060096]
[1754516742783,0.2286584,114980.0,114970.0,1.42060096]
[1754516743284,0.2286584,114980.0,114970.0,1.05980096]
[1754516743488,0.2286584,114980.0,114970.0,1.42060096]
[1754516744888,0.3023684,114980.0,114970.0,1.42060096]
[1754516745388,0.3023684,114980.0,114970.0,1.2639843]
[1754516747792,0.3023684,114980.0,114970.0,1.42055736]
[1754516752297,0.2777984,114980.0,114970.0,1.42055736]
[1754516752703,0.70684467,114980.0,114970.0,1.84960363]
[1754516754304,0.70684467,114980.0,114970.0,1.67567933]
[1754516755404,0.70684467,114980.0,114970.0,1.84960363]
[1754516755602,0.65770467,114980.0,114970.0,1.84960363]
[1754516756105,0.70684467,114980.0,114970.0,1.84960363]
[1754516756302,0.69050467,114980.0,114970.0,1.84960363]
[1754516756601,0.1789084,114980.0,114970.0,1.67379933]
[1754516757107,0.1789084,114980.0,114970.0,1.84772363]
[1754516758411,0.1789084,114980.0,114970.0,1.69115057]
[1754516758906,0.1769084,114980.0,114970.0,1.69115057]
[1754516759102,0.1769084,114980.0,114970.0,1.2621043]
[1754516759306,0.1769084,114980.0,114970.0,1.69115057]
[1754516763011,0.1769084,114980.0,114970.0,1.2621043]
[1754516763517,0.1769084,114980.0,114970.0,1.69115057]
[1754516764004,0.1769084,114980.0,114970.0,1.2621043]
[1754516764209,0.1769084,114980.0,114970.0,1.69115057]
[1754516766616,0.1769084,114980.0,114970.0,1.89462467]
[1754516767810,0.1769084,114980.0,114970.0,1.69115057]
[1754516771323,0.1769084,114980.0,114970.0,1.89462467]
[1754516772122,0.1769084,114980.0,114970.0,1.96247592]
[1754516775325,0.1769084,114980.0,114970.0,1.53342965]
[1754516775526,0.1769084,114980.0,114970.0,1.96247592]
[1754516776229,0.1769084,114980.0,114970.0,1.75900182]
[1754516777327,0.1769084,114980.0,114970.0,1.32995555]
[1754516777625,0.1769084,114980.0,114970.0,1.75900182]
[1754516779828,0.1769084,114980.0,114970.0,1.96247592]
[1754516781624,0.1769084,114980.0,114970.0,2.11895643]
[1754516782232,0.1769084,114980.0,114970.0,1.91548233]
[1754516784033,0.1769084,114980.0,114970.0,1.75900182]
[1754516784635,0.1769084,114980.0,114970.0,1.32995555]
[1754516784829,0.1769084,114980.0,114970.0,1.69115057]
[1754516786132,0.1769084,114980.0,114970.0,1.89462467]
[1754516788341,0.1769084,114980.0,114970.0,1.69115057]
[1754516788834,0.1769084,114980.0,114970.0,1.84762449]
[1754516791340,0.1769084,114980.0,114970.0,1.91852967]
[1754516791934,0.1769084,114980.0,114970.0,1.76205575]
[1754516793042,0.1769084,114980.0,114970.0,1.15865575]
[1754516793237,0.1769084,114980.0,114970.0,1.76169575]
[1754516793944,0.1769084,114980.0,114970.0,1.33264948]
[1754516794242,0.1769084,114980.0,114970.0,1.76169575]
[1754516794943,0.003,114980.0,114970.0,1.76169575]
[1754516795744,0.003,114980.0,114970.0,1.91819178]
[1754516799142,0.003,114980.0,114970.0,1.76169575]
[1754516800342,0.003,114980.0,114970.0,1.33264948]
[1754516800543,0.003,114980.0,114970.0,1.76169575]
[1754516802647,0.003,114980.0,114970.0,1.33264948]
[1754516802843,0.003,114980.0,114970.0,1.76169575]
[1754516803445,0.003,114980.0,114970.0,1.91822993]
[1754516805047,0.003,114980.0,114970.0,1.48918366]
[1754516805241,0.003,114980.0,114970.0,1.91822993]
[1754516806249,0.003,114980.0,114970.0,1.91922993]
[1754516808247,0.60294797,114990.0,114980.0,0.2944699]
[1754516808448,0.1739017,114990.0,114980.0,1.08431617]
[1754516808852,0.75807507,115000.0,114980.0,0.96953067]
[1754516809048,0.02472,114990.0,114980.0,0.7143943]
[1754516809348,0.02472,114990.0,114980.0,1.6780343]
[1754516809647,0.02472,114990.0,114980.0,1.6790343]
[1754516809844,0.02772,114990.0,114980.0,1.6790343]
[1754516810148,0.02772,114990.0,114980.0,2.10808057]
[1754516810349,0.02772,114990.0,114980.0,2.1271603]
[1754516811658,0.003,114990.0,114980.0,2.1271603]
[1754516811843,0.02772,114990.0,114980.0,2.1271603]
[1754516812847,0.02772,114990.0,114980.0,2.3306344]
[1754516815748,0.003,114990.0,114980.0,2.3306344]
[1754516815949,0.02772,114990.0,114980.0,2.3306344]
[1754516818349,0.003,114990.0,114980.0,2.3306344]
[1754516818550,0.003,114990.0,114980.0,1.7277944]
[1754516818750,0.003,114990.0,114980.0,2.3304344]
[1754516819256,0.02772,114990.0,114980.0,2.3304344]
[1754516819555,0.003,114990.0,114980.0,2.34829998]
[1754516822961,0.2855311,115010.0,115000.0,0.1738824]
[1754516823149,0.3466211,115010.0,115000.0,1.56628867]
[1754516823445,0.3851611,115010.0,115000.0,1.56628867]
[1754516824056,0.3851611,115010.0,115000.0,1.72266237]
[1754516824554,0.81420737,115010.0,115000.0,1.72266237]
[1754516824749,0.81420737,115010.0,115000.0,1.72366237]
[1754516825053,0.82020737,115010.0,115000.0,1.72366237]
[1754516828052,0.82020737,115010.0,115000.0,1.56728867]
[1754516829360,0.82020737,115010.0,115000.0,1.1382424]
[1754516829657,0.82020737,115010.0,115000.0,1.72366237]
[1754516829852,0.82020737,115010.0,115000.0,1.72529237]
[1754516830450,0.82020737,115010.0,115000.0,1.56891867]
[1754516830962,0.82020737,115010.0,115000.0,1.1398724]
[1754516831164,0.3911611,115010.0,115000.0,1.56891867]
[1754516831464,0.82020737,115010.0,115000.0,1.56891867]
[1754516835176,0.3911611,115010.0,115000.0,1.56891867]
[1754516838761,0.82020737,115010.0,115000.0,1.92971867]
[1754516840871,0.3911611,115010.0,115000.0,1.92971867]
[1754516842766,0.3911611,115010.0,115000.0,1.20811867]
[1754516842967,0.3911611,115010.0,115000.0,1.92971867]
[1754516844573,0.82020737,115010.0,115000.0,1.92971867]
[1754516849875,0.82020737,115010.0,115000.0,1.56891867]
[1754516853072,0.82020737,115010.0,115000.0,1.72529237]
[1754516861089,0.82020737,115010.0,115000.0,1.74283784]
[1754516865695,0.3911611,115010.0,115000.0,1.74283784]
[1754516865989,0.82020737,115010.0,115000.0,1.74283784]
[1754516866698,0.82020737,115010.0,115000.0,1.72529237]
[1754516867196,0.3911611,115010.0,115000.0,1.72529237]
[1754516873299,0.3911611,115010.0,115000.0,1.56891867]
[1754516880105,0.3891611,115010.0,115000.0,1.56891867]
[1754516880805,0.3389511,115010.0,115000.0,1.56891867]
[1754516881008,0.3904511,115010.0,115000.0,1.56891867]
[1754516881395,0.3894511,115010.0,115000.0,1.56891867]
[1754516881806,0.3904511,115010.0,115000.0,1.56891867]
[1754516882308,0.3904511,115010.0,115000.0,1.72529237]
[1754516883208,0.3894511,115010.0,115000.0,1.72529237]
[1754516885013,0.3904511,115010.0,115000.0,1.72529237]
[1754516886406,0.2895311,115010.0,115000.0,1.72529237]
[1754516886612,0.3378811,115010.0,115000.0,1.72529237]
[1754516886908,0.3893811,115010.0,115000.0,1.2962461]
[1754516887114,0.3893811,115010.0,115000.0,1.72529237]
[1754516887115,0.81842737,115010.0,115000.0,1.72529237]
[1754516887314,0.81842737,115010.0,115000.0,1.12273237]
[1754516887609,0.81842737,115010.0,115000.0,1.72381237]
[1754516887916,0.3893811,115010.0,115000.0,1.56743867]
[1754516888417,0.3863811,115010.0,115000.0,1.56643867]
[1754516888716,0.3883811,115010.0,115000.0,1.56743867]
[1754516888918,0.3893811,115010.0,115000.0,1.56743867]
[1754516889119,0.3903811,115010.0,115000.0,1.56743867]
[1754516889516,0.81942737,115010.0,115000.0,1.56743867]
[1754516890120,0.3469127,115010.0,115000.0,1.56743867]
[1754516893815,0.3469127,115010.0,115000.0,1.20663867]
[1754516894020,0.3469127,115010.0,115000.0,1.56743867]
[1754516895521,0.3469127,115010.0,115000.0,1.56790867]
[1754516896721,0.3469127,115010.0,115000.0,1.72428237]
[1754516899724,0.3469127,115010.0,115000.0,1.2952361]
[1754516899924,0.3469127,115010.0,115000.0,1.72428237]
[1754516902122,0.3469127,115010.0,115000.0,1.31314367]
[1754516902123,0.3034458,115010.0,115000.0,1.31314367]
[1754516902328,0.3034458,115010.0,115000.0,1.74218994]
[1754516902527,0.2519458,115010.0,115000.0,1.74218994]
[1754516905136,0.07807,115010.0,115000.0,1.74218994]
[1754516905335,0.218175,115010.0,115000.0,1.74218994]
[1754516915053,0.0443,115010.0,115000.0,1.74218994]
[1754516915248,0.2181759,115010.0,115000.0,1.74218994]
[1754516916052,0.2497959,115010.0,115000.0,1.74218994]
[1754516916452,0.2497959,115010.0,115000.0,1.31314367]
[1754516916652,0.2497959,115010.0,115000.0,1.74218994]
[1754516917646,0.2497959,115010.0,115000.0,1.14126994]
[1754516917944,0.2497959,115010.0,115000.0,1.74174994]
[1754516918147,0.2497959,115010.0,115000.0,1.14126994]
[1754516918345,0.2497959,115010.0,115000.0,1.74170994]
[1754516918541,0.1778759,115010.0,115000.0,1.74170994]
[1754516918741,0.2006059,115010.0,115000.0,1.74170994]
[1754516919352,0.2006059,115010.0,115000.0,1.58533624]
[1754516919649,0.2006059,115010.0,115000.0,0.98489624]
[1754516919856,0.2006059,115010.0,115000.0,1.58533624]
[1754516920761,0.2006059,115010.0,115000.0,1.15628997]
[1754516920960,0.2006059,115010.0,115000.0,1.58533624]
[1754516922752,0.1778759,115010.0,115000.0,1.58533624]
[1754516922958,0.02706,115010.0,115000.0,1.58533624]
[1754516930959,0.004,115010.0,115000.0,1.58533624]
[1754516931468,0.004,115010.0,115000.0,1.15628997]
[1754516932068,0.004,115010.0,115000.0,1.31279689]
[1754516932868,0.004,115010.0,115000.0,1.35976407]
[1754516936372,0.3826973,115030.0,115020.0,0.1738608]
[1754516936573,0.3826973,115030.0,115020.0,1.56378707]
[1754516936774,0.81174357,115030.0,115020.0,1.56378707]
[1754516937073,0.3392332,115030.0,115020.0,1.56378707]
[1754516937977,0.2987696,115030.0,115020.0,1.56378707]
[1754516938171,0.3037696,115030.0,115020.0,1.56478707]
[1754516938473,0.72981587,115030.0,115020.0,1.56478707]
[1754516938668,0.72681587,115030.0,115020.0,1.56378707]
[1754516938870,0.72981587,115030.0,115020.0,1.56478707]
[1754516942377,0.3007696,115030.0,115020.0,1.56478707]
[1754516942569,0.72981587,115030.0,115020.0,1.56478707]
[1754516943470,0.2019196,115030.0,115020.0,1.56478707]
[1754516943673,0.3007696,115030.0,115020.0,1.56478707]
[1754516947478,0.3007696,115030.0,115020.0,1.56462707]
[1754516947982,0.005,115030.0,115020.0,1.99367334]
[1754516948277,0.12691,115030.0,115020.0,1.56462707]
[1754516949978,0.12691,115030.0,115020.0,1.56605707]
[1754516950783,0.12691,115030.0,115020.0,1.58115723]
[1754516953590,0.11053,115030.0,115020.0,1.58115723]
[1754516953991,0.07624,115030.0,115020.0,1.58115723]
[1754516954490,0.02806,115030.0,115020.0,1.58115723]
[1754516957094,0.02806,115030.0,115020.0,1.56605707]
[1754516957294,0.64617197,115030.0,115020.0,1.1370108]
[1754516957497,0.55713627,115030.0,115020.0,1.56605707]
[1754516957896,0.55713627,115030.0,115020.0,0.96842707]
[1754516958097,0.55713627,115030.0,115020.0,1.56822707]
[1754516958299,0.55713627,115030.0,115020.0,1.72458927]
[1754516958688,0.12809,115030.0,115020.0,1.72458927]
[1754516959094,0.12809,115030.0,115020.0,1.56822707]
[1754516960899,0.12809,115030.0,115020.0,1.1391808]
[1754516961195,0.55713627,115030.0,115020.0,1.56822707]
[1754516961395,0.12809,115030.0,115020.0,1.56822707]
[1754516961598,0.3019357,115030.0,115020.0,1.1391808]
[1754516961794,0.12809,115030.0,115020.0,1.1391808]
[1754516961995,0.12809,115030.0,115020.0,1.56822707]
[1754516962395,0.12809,115030.0,115020.0,1.1391808]
[1754516962596,0.12809,115030.0,115020.0,1.56822707]
[1754516963197,0.12809,115030.0,115020.0,1.72458927]
[1754516963594,0.55713627,115030.0,115020.0,1.72458927]
[1754516963793,0.73098197,115030.0,115020.0,1.72458927]
[1754516964199,0.3019357,115030.0,115020.0,1.72458927]
[1754516964695,0.12809,115030.0,115020.0,1.72458927]
[1754516966304,0.12809,115030.0,115020.0,1.295543]
[1754516966702,0.12809,115030.0,115020.0,1.72458927]
[1754516969595,0.12809,115030.0,115020.0,1.56822707]
[1754516969801,0.12809,115030.0,115020.0,1.72470429]
[1754516970002,0.12809,115030.0,115020.0,1.29565802]
[1754516970194,0.12809,115030.0,115020.0,1.72470429]
[1754516970701,0.12809,115030.0,115020.0,1.56822707]
[1754516970903,0.12509,115030.0,115020.0,1.56722707]
[1754516971102,0.12709,115030.0,115020.0,1.56822707]
[1754516971398,0.12509,115030.0,115020.0,1.56822707]
[1754516971702,0.12609,115030.0,115020.0,1.56822707]
[1754516972602,0.10916,115030.0,115020.0,1.56822707]
[1754516973904,0.10916,115030.0,115020.0,0.96842707]
[1754516974105,0.10916,115030.0,115020.0,1.72455344]
[1754516975604,0.10916,115030.0,115020.0,1.29550717]
[1754516975803,0.2495658,115030.0,115020.0,1.72455344]
[1754516976510,0.07572,115030.0,115020.0,1.72455344]
[1754516976809,0.2495657,115030.0,115020.0,1.72455344]
[1754516977506,0.67861197,115030.0,115020.0,1.72455344]
[1754516977802,0.50476627,115030.0,115020.0,1.72455344]
[1754516978307,0.2495658,115030.0,115020.0,2.08535344]
[1754516980108,0.003,115030.0,115020.0,2.08535344]
[1754516980305,0.02646,115030.0,115020.0,2.08535344]
[1754516982912,0.02646,115030.0,115020.0,1.92886707]
[1754516983509,0.02646,115030.0,115020.0,2.08534293]
[1754516984107,0.02646,115030.0,115020.0,1.65629666]
[1754516984409,0.02646,115030.0,115020.0,2.08534293]
[1754516985911,0.02646,115030.0,115020.0,1.92886707]
[1754516993418,0.02646,115030.0,115020.0,1.20726707]